[Event "Reykjavik Open 2025"]
[Site "Reykjavik"]
[Date "2025.04.12"]
[Round "5.5"]
[White "Safarli, Eltaj"]
[Black "Adhiban, B.."]
[Result "1-0"]
[Annotator "ChessBase"]
[ECO "B47"]
[WhiteElo "2617"]
[BlackElo "2554"]
[PlyCount "67"]
[EventDate "2025.04.09"]
[EventType "swiss"]
[EventCountry "ISL"]
[SourceTitle "playchess.com"]
[Source "ChessBase"]
[SourceQuality "1"]
[TimeControl "40/5400+30:1800+30"]

1. e4 {[%emt 0:00:06]} c5 {[%emt 0:00:03]} 2. Nf3 {[%emt 0:00:07]} e6 {[%emt 0:00:08]} 3. d4 {[%emt 0:00:26]} cxd4 {[%emt 0:00:04]} 4. Nxd4 {[%emt 0:00:05]} Nc6 {[%emt 0:00:04]} 5. Nc3 {[%emt 0:00:06]} Qc7 {[%emt 0:00:03]} 6. Ncb5 {[%emt 0:01:14]} Qb8 {[%emt 0:00:04]} 7. Bd3 {[%emt 0:00:05]} Nf6 {[%emt 0:00:08]} 8. O-O {[%emt 0:00:27]} Be7 {[%emt 0:00:04]} 9. Qe2 {[%emt 0:01:51]} O-O {[%emt 0:05:40]} 10. Bg5 {[%emt 0:01:10]} d6 {[%emt 0:10:45]} 11. c4 {[%emt 0:00:47]} h6 {[%emt 0:05:11]} 12. Bh4 {[%emt 0:04:16]} Ne5 {[%emt 0:00:06]} 13. f4 {[%emt 0:09:40]} Ng6 {[%emt 0:06:41]} 14. Bg3 {[%emt 0:01:28]} a6 {[%emt 0:00:07]} 15. e5 {[%emt 0:00:30]} axb5 {[%emt 0:12:07]} 16. exf6 {[%emt 0:00:31]} Bxf6 {[%emt 0:00:10]} 17. Nxb5 {[%emt 0:00:20]} Bd7 {[%emt 0:02:25]} 18. f5 {[%emt 0:15:39]} Ne5 {[%emt 0:02:53]} 19. fxe6 {[%emt 0:00:32]} fxe6 {[%emt 0:00:04]} 20. Bc2 {[%emt 0:07:17]} Bc6 {[%emt 0:23:48]} 21. a4 {[%emt 0:07:57]} Bxb5 {[%emt 0:23:53]} 22. cxb5 {[%emt 0:00:54]} Qc7 {[%emt 0:00:01]} 23. Qe4 {[%emt 0:01:51]} Qc4 {[%emt 0:03:23]} 24. Qh7+ {[%emt 0:03:02]} Kf7 {[%emt 0:00:01]} 25. Rxf6+ {[%emt 0:06:51]} Kxf6 {[%emt 0:00:05]} 26. Bxe5+ {[%emt 0:01:16]} dxe5 {[%emt 0:03:58]} 27. Rf1+ {[%emt 0:00:35]} Ke7 {[%emt 0:00:02]} 28. Qxg7+ {[%emt 0:00:06]} Kd6 {[%emt 0:00:03]} 29. Rd1+ {[%emt 0:02:40]} Kc5 {[%emt 0:00:02]} 30. Qxe5+ {[%emt 0:00:22]} Kb6 {[%emt 0:00:31]} 31. a5+ {[%emt 0:09:23]} Kxa5 {[%emt 0:00:55]} 32. b4+ {[%emt 0:03:53]} Qxb4 {[%emt 0:01:19]} 33. Qc7+ {[%emt 0:00:33]} Kxb5 {[%emt 0:00:36]} 34. Bd3+ {[%emt 0:00:22]} 1-0

[Event "Reykjavik Open 2025"]
[Site "Reykjavik"]
[Date "2025.04.12"]
[Round "5.6"]
[White "Ivanchuk, Vasyl"]
[Black "Hagner, Bennet"]
[Result "1-0"]
[Annotator "ChessBase"]
[ECO "A28"]
[WhiteElo "2604"]
[BlackElo "2430"]
[PlyCount "75"]
[EventDate "2025.04.09"]
[EventType "swiss"]
[EventCountry "ISL"]
[SourceTitle "playchess.com"]
[Source "ChessBase"]
[SourceQuality "1"]
[TimeControl "40/5400+30:1800+30"]

1. c4 {[%emt 0:00:05]} Nf6 {[%emt 0:00:19]} 2. Nc3 {[%emt 0:00:15]} e5 {[%emt 0:00:40]} 3. e3 {[%emt 0:01:47]} Nc6 {[%emt 0:04:15]} 4. Nf3 {[%emt 0:00:40]} d5 {[%emt 0:04:09]} 5. cxd5 {[%emt 0:00:50]} Nxd5 {[%emt 0:00:05]} 6. Qc2 {[%emt 0:01:15]} Nxc3 {[%emt 0:04:01]} 7. bxc3 {[%emt 0:02:35]} Bd6 {[%emt 0:00:23]} 8. Be2 {[%emt 0:02:02]} O-O {[%emt 0:00:28]} 9. O-O {[%emt 0:00:09]} Re8 {[%emt 0:01:26]} 10. d4 {[%emt 0:00:49]} h6 {[%emt 0:01:28]} 11. Bb2 {[%emt 0:01:23]} a5 {[%emt 0:05:38]} 12. Rad1 {[%emt 0:12:58]} Qe7 {[%emt 0:07:32]} 13. Nd2 {[%emt 0:16:36]} a4 {[%emt 0:10:41]} 14. Bf3 {[%emt 0:12:32]} Bd7 {[%emt 0:00:39]} 15. Nc4 {[%emt 0:05:23]} a3 {[%emt 0:19:54]} 16. Ba1 {[%emt 0:04:31]} e4 {[%emt 0:01:31]} 17. Be2 {[%emt 0:00:03]} b5 {[%emt 0:01:34]} 18. Nxd6 {[%emt 0:01:51]} cxd6 {[%emt 0:00:16]} 19. c4 {[%emt 0:02:10]} bxc4 {[%emt 0:00:35]} 20. d5 {[%emt 0:01:03]} Na5 {[%emt 0:11:19]} 21. Rb1 {[%emt 0:00:59]} Qg5 {[%emt 0:01:24]} 22. Rfd1 {[%emt 0:00:57]} Bh3 {[%emt 0:03:04]} 23. g3 {[%emt 0:05:47]} Re7 {[%emt 0:04:50]} 24. Rb6 {[%emt 0:03:59]} Qg6 {[%emt 0:01:58]} 25. Rdb1 {[%emt 0:06:36]} Raa7 {[%emt 0:00:39]} 26. Bd4 {[%emt 0:02:01]} Kh7 {[%emt 0:03:33]} 27. R6b5 {[%emt 0:03:51]} Bd7 {[%emt 0:06:31]} 28. Rb8 {[%emt 0:02:36]} Ra6 {[%emt 0:00:56]} 29. R1b6 {[%emt 0:01:59]} Ra7 {[%emt 0:01:34]} 30. h4 {[%emt 0:02:37]} Bg4 {[%emt 0:01:11]} 31. Bf1 {[%emt 0:01:50]} Rab7 {[%emt 0:02:03]} 32. Qc3 {[%emt 0:00:34]} Rxb8 {[%emt 0:00:20]} 33. Rxb8 {[%emt 0:00:02]} Nb7 {[%emt 0:00:58]} 34. Qxa3 {[%emt 0:00:59]} Qf5 {[%emt 0:00:09]} 35. Qa8 {[%emt 0:01:11]} Nc5 {[%emt 0:01:22]} 36. Rh8+ {[%emt 0:00:47]} Kg6 {[%emt 0:00:02]} 37. Qf8 {[%emt 0:00:06]} Re5 {[%emt 0:00:20]} 38. Qxd6+ {[%emt 0:01:20]} 1-0

[Event "Reykjavik Open 2025"]
[Site "Reykjavik"]
[Date "2025.04.12"]
[Round "5.7"]
[White "Bekker, Stefan"]
[Black "Banusz, Tamas"]
[Result "0-1"]
[Annotator "ChessBase"]
[ECO "A11"]
[WhiteElo "2358"]
[BlackElo "2592"]
[PlyCount "96"]
[EventDate "2025.04.09"]
[EventType "swiss"]
[EventCountry "ISL"]
[SourceTitle "playchess.com"]
[Source "ChessBase"]
[SourceQuality "1"]
[TimeControl "40/5400+30:1800+30"]

1. Nf3 {[%emt 0:00:04]} d5 {[%emt 0:00:18]} 2. c4 {[%emt 0:00:05]} c6 {[%emt 0:00:44]} 3. g3 {[%emt 0:00:06]} Nf6 {[%emt 0:05:09]} 4. Bg2 {[%emt 0:00:18]} dxc4 {[%emt 0:00:04]} 5. O-O {[%emt 0:00:06]} Nbd7 {[%emt 0:00:10]} 6. Qc2 {[%emt 0:00:06]} e5 {[%emt 0:05:12]} 7. Qxc4 {[%emt 0:07:23]} Bd6 {[%emt 0:00:32]} 8. d4 {[%emt 0:05:37]} O-O {[%emt 0:05:24]} 9. Nc3 {[%emt 0:04:30]} Qe7 {[%emt 0:03:43]} 10. e4 {[%emt 0:01:24]} Nb6 {[%emt 0:01:24]} 11. Qb3 {[%emt 0:00:59]} exd4 {[%emt 0:04:10]} 12. Nxd4 {[%emt 0:01:28]} Bc5 {[%emt 0:03:40]} 13. Nde2 {[%emt 0:00:43]} Ng4 {[%emt 0:03:57]} 14. Nf4 {[%emt 0:06:46]} Rd8 {[%emt 0:09:01]} 15. Qc2 {[%emt 0:05:52]} Ne5 {[%emt 0:05:20]} 16. h3 {[%emt 0:12:34]} a5 {[%emt 0:03:47]} 17. Nd1 {[%emt 0:05:17]} a4 {[%emt 0:01:26]} 18. Ne3 {[%emt 0:01:23]} a3 {[%emt 0:04:59]} 19. b3 {[%emt 0:01:16]} g6 {[%emt 0:03:04]} 20. Bd2 {[%emt 0:01:28]} Bd7 {[%emt 0:10:17]} 21. Bc3 {[%emt 0:03:49]} Be8 {[%emt 0:05:07]} 22. Rad1 {[%emt 0:16:39]} f6 {[%emt 0:00:30]} 23. Ng4 {[%emt 0:00:54]} Nbd7 {[%emt 0:03:08]} 24. Nh6+ {[%emt 0:06:51]} Kh8 {[%emt 0:02:17]} 25. b4 {[%emt 0:00:07]} Bb6 {[%emt 0:01:30]} 26. g4 {[%emt 0:05:46]} Kg7 {[%emt 0:03:50]} 27. Qc1 {[%emt 0:00:39]} Bc7 {[%emt 0:01:51]} 28. Nh5+ {[%emt 0:01:03]} Kh8 {[%emt 0:02:16]} 29. Ng3 {[%emt 0:00:13]} Nf7 {[%emt 0:05:32]} 30. Nxf7+ {[%emt 0:04:41]} Bxf7 {[%emt 0:00:08]} 31. f4 {[%emt 0:00:13]} Kg8 {[%emt 0:00:06]} 32. Qa1 {[%emt 0:01:20]} Bc4 {[%emt 0:02:42]} 33. Rf3 {[%emt 0:00:53]} Rf8 {[%emt 0:00:21]} 34. h4 {[%emt 0:01:16]} Nb6 {[%emt 0:01:04]} 35. Rd4 {[%emt 0:03:45]} Qf7 {[%emt 0:00:44]} 36. Rxc4 {[%emt 0:00:37]} Qxc4 {[%emt 0:01:22]} 37. Bf1 {[%emt 0:00:37]} Qf7 {[%emt 0:00:58]} 38. g5 {[%emt 0:00:36]} fxg5 {[%emt 0:01:16]} 39. hxg5 {[%emt 0:00:08]} Bxf4 {[%emt 0:01:07]} 40. Bd4 {[%emt 0:00:49]} Qc7 {[%emt 0:01:20]} 41. Qc3 {[%emt 0:03:09]} Bxg3 {[%emt 0:14:29]} 42. Qb3+ {[%emt 0:06:28]} Nd5 {[%emt 0:00:27]} 43. Rxg3 {[%emt 0:01:31]} Rxf1+ {[%emt 0:01:21]} 44. Kxf1 {[%emt 0:02:52]} Qf4+ {[%emt 0:00:12]} 45. Rf3 {[%emt 0:06:58]} Qxe4 {[%emt 0:00:13]} 46. Bc5 {[%emt 0:00:18]} Re8 {[%emt 0:01:31]} 47. Qxa3 {[%emt 0:02:33]} Qe1+ {[%emt 0:02:10]} 48. Kg2 {[%emt 0:00:07]} Qd2+ {[%emt 0:00:33]} 0-1

[Event "Reykjavik Open 2025"]
[Site "Reykjavik"]
[Date "2025.04.12"]
[Round "5.8"]
[White "Amar, Elham"]
[Black "Stefansson, Hannes"]
[Result "1-0"]
[Annotator "ChessBase"]
[ECO "B42"]
[WhiteElo "2546"]
[BlackElo "2420"]
[PlyCount "83"]
[EventDate "2025.04.09"]
[EventType "swiss"]
[EventCountry "ISL"]
[SourceTitle "playchess.com"]
[Source "ChessBase"]
[SourceQuality "1"]
[TimeControl "40/5400+30:1800+30"]

1. e4 {[%emt 0:00:02]} c5 {[%emt 0:00:15]} 2. Nf3 {[%emt 0:00:05]} e6 {[%emt 0:00:14]} 3. d4 {[%emt 0:00:53]} cxd4 {[%emt 0:00:12]} 4. Nxd4 {[%emt 0:00:06]} a6 {[%emt 0:00:19]} 5. Bd3 {[%emt 0:00:36]} Bc5 {[%emt 0:00:23]} 6. Nb3 {[%emt 0:00:11]} Ba7 {[%emt 0:00:36]} 7. Qe2 {[%emt 0:00:43]} Ne7 {[%emt 0:02:04]} 8. Nc3 {[%emt 0:01:30]} Nbc6 {[%emt 0:04:37]} 9. Be3 {[%emt 0:00:07]} O-O {[%emt 0:00:19]} 10. O-O-O {[%emt 0:00:49]} b5 {[%emt 0:00:25]} 11. Bxa7 {[%emt 0:04:27]} Rxa7 {[%emt 0:00:16]} 12. f4 {[%emt 0:00:28]} d5 {[%emt 0:13:35]} 13. exd5 {[%emt 0:08:17]} Nxd5 {[%emt 0:00:24]} 14. Nxd5 {[%emt 0:11:12]} exd5 {[%emt 0:00:07]} 15. Kb1 {[%emt 0:05:03]} Qf6 {[%emt 0:05:34]} 16. Qh5 {[%emt 0:06:04]} g6 {[%emt 0:00:52]} 17. Qxd5 {[%emt 0:00:36]} Bg4 {[%emt 0:06:56]} 18. Rd2 {[%emt 0:03:09]} Rd8 {[%emt 0:06:55]} 19. Qg5 {[%emt 0:03:41]} Qxg5 {[%emt 0:03:08]} 20. fxg5 {[%emt 0:00:05]} Re7 {[%emt 0:03:22]} 21. h3 {[%emt 0:04:32]} Bf5 {[%emt 0:01:25]} 22. Bxf5 {[%emt 0:04:27]} Rxd2 {[%emt 0:00:07]} 23. Nxd2 {[%emt 0:00:04]} gxf5 {[%emt 0:00:05]} 24. Kc1 {[%emt 0:02:12]} Nb4 {[%emt 0:00:25]} 25. a3 {[%emt 0:07:13]} Nd5 {[%emt 0:00:07]} 26. Nf3 {[%emt 0:01:10]} Re2 {[%emt 0:02:46]} 27. Rd1 {[%emt 0:01:12]} Ne3 {[%emt 0:01:16]} 28. Re1 {[%emt 0:00:41]} Rxe1+ {[%emt 0:00:41]} 29. Nxe1 {[%emt 0:00:05]} Kg7 {[%emt 0:00:10]} 30. Kd2 {[%emt 0:00:48]} f4 {[%emt 0:02:02]} 31. g4 {[%emt 0:12:28]} Nc4+ {[%emt 0:09:33]} 32. Kc3 {[%emt 0:00:07]} Ne5 {[%emt 0:00:19]} 33. Nd3 {[%emt 0:00:42]} f3 {[%emt 0:03:07]} 34. b3 {[%emt 0:00:29]} f6 {[%emt 0:02:43]} 35. gxf6+ {[%emt 0:02:46]} Kxf6 {[%emt 0:00:03]} 36. Kd4 {[%emt 0:00:11]} Nc6+ {[%emt 0:01:14]} 37. Ke4 {[%emt 0:00:30]} Kg5 {[%emt 0:00:21]} 38. c4 {[%emt 0:01:19]} Na5 {[%emt 0:02:13]} 39. c5 {[%emt 0:02:04]} Nxb3 {[%emt 0:00:38]} 40. c6 {[%emt 0:00:00]} Nc5+ {[%emt 0:04:13]} 41. Kxf3 {[%emt 0:30:24]} Na4 {[%emt 0:31:26]} 42. Nc5 {[%emt 0:00:42]} 1-0

[Event "Reykjavik Open 2025"]
[Site "Reykjavik"]
[Date "2025.04.12"]
[Round "5.9"]
[White "Maze, Sebastien"]
[Black "Nguyen, Paul"]
[Result "1-0"]
[Annotator "ChessBase"]
[ECO "C47"]
[WhiteElo "2557"]
[BlackElo "1936"]
[PlyCount "79"]
[EventDate "2025.04.09"]
[EventType "swiss"]
[EventCountry "ISL"]
[SourceTitle "playchess.com"]
[Source "ChessBase"]
[SourceQuality "1"]
[TimeControl "40/5400+30:1800+30"]

1. e4 {[%emt 0:00:02]} e5 {[%emt 0:00:05]} 2. Nf3 {[%emt 0:00:03]} Nf6 {[%emt 0:00:06]} 3. Nc3 {[%emt 0:01:08]} Nc6 {[%emt 0:00:07]} 4. h3 {[%emt 0:01:39]} d5 {[%emt 0:00:07]} 5. exd5 {[%emt 0:00:04]} Nxd5 {[%emt 0:00:05]} 6. Bb5 {[%emt 0:00:21]} Nxc3 {[%emt 0:00:07]} 7. bxc3 {[%emt 0:00:03]} Bd6 {[%emt 0:00:09]} 8. O-O {[%emt 0:02:08]} O-O {[%emt 0:00:06]} 9. Re1 {[%emt 0:01:26]} Qf6 {[%emt 0:03:52]} 10. d3 {[%emt 0:04:07]} Bf5 {[%emt 0:07:20]} 11. Ng5 {[%emt 0:05:26]} Qg6 {[%emt 0:07:41]} 12. Qf3 {[%emt 0:00:09]} Bd7 {[%emt 0:02:09]} 13. Ne4 {[%emt 0:02:32]} Be7 {[%emt 0:09:33]} 14. Qg3 {[%emt 0:00:05]} Rfe8 {[%emt 0:10:11]} 15. Qxg6 {[%emt 0:09:41]} hxg6 {[%emt 0:00:18]} 16. a4 {[%emt 0:00:05]} Rad8 {[%emt 0:05:25]} 17. a5 {[%emt 0:01:15]} b6 {[%emt 0:04:18]} 18. axb6 {[%emt 0:04:24]} axb6 {[%emt 0:00:08]} 19. Bd2 {[%emt 0:03:47]} Ra8 {[%emt 0:04:53]} 20. f4 {[%emt 0:04:58]} f5 {[%emt 0:03:50]} 21. Nf2 {[%emt 0:00:22]} Rxa1 {[%emt 0:00:21]} 22. Rxa1 {[%emt 0:00:03]} Bd6 {[%emt 0:00:22]} 23. Bc4+ {[%emt 0:05:39]} Kf8 {[%emt 0:05:54]} 24. fxe5 {[%emt 0:00:33]} Nxe5 {[%emt 0:00:22]} 25. Bd5 {[%emt 0:00:29]} Bc6 {[%emt 0:00:38]} 26. Bxc6 {[%emt 0:04:38]} Nxc6 {[%emt 0:00:06]} 27. Kf1 {[%emt 0:00:08]} Kf7 {[%emt 0:05:34]} 28. Nd1 {[%emt 0:00:25]} Ke6 {[%emt 0:05:40]} 29. Ne3 {[%emt 0:01:40]} Bf4 {[%emt 0:02:29]} 30. Nd5 {[%emt 0:03:34]} Bd6 {[%emt 0:04:59]} 31. Re1+ {[%emt 0:04:18]} Kd7 {[%emt 0:00:04]} 32. Rxe8 {[%emt 0:00:07]} Kxe8 {[%emt 0:00:04]} 33. c4 {[%emt 0:00:15]} Ne7 {[%emt 0:00:51]} 34. Ke2 {[%emt 0:02:33]} Nxd5 {[%emt 0:02:11]} 35. cxd5 {[%emt 0:00:04]} Be5 {[%emt 0:00:06]} 36. c4 {[%emt 0:00:35]} Kd7 {[%emt 0:00:52]} 37. Bb4 {[%emt 0:02:09]} c6 {[%emt 0:02:45]} 38. dxc6+ {[%emt 0:00:06]} Kxc6 {[%emt 0:00:07]} 39. Ke3 {[%emt 0:00:07]} b5 {[%emt 0:00:06]} 40. d4 {[%emt 0:00:50]} 1-0

[Event "Reykjavik Open 2025"]
[Site "Reykjavik"]
[Date "2025.04.12"]
[Round "5.10"]
[White "Sokolovsky, Yahli"]
[Black "Heimisson, Hilmir Freyr"]
[Result "1-0"]
[Annotator "ChessBase"]
[ECO "C65"]
[WhiteElo "2546"]
[BlackElo "2376"]
[PlyCount "93"]
[EventDate "2025.04.09"]
[EventType "swiss"]
[EventCountry "ISL"]
[SourceTitle "playchess.com"]
[Source "ChessBase"]
[SourceQuality "1"]
[TimeControl "40/5400+30:1800+30"]

1. e4 {[%emt 0:00:03]} e5 {[%emt 0:00:13]} 2. Nf3 {[%emt 0:00:05]} Nc6 {[%emt 0:00:18]} 3. Bb5 {[%emt 0:00:03]} Nf6 {[%emt 0:00:19]} 4. d3 {[%emt 0:00:19]} Bc5 {[%emt 0:00:32]} 5. c3 {[%emt 0:00:05]} d5 {[%emt 0:01:27]} 6. exd5 {[%emt 0:00:33]} Qxd5 {[%emt 0:00:14]} 7. Bc4 {[%emt 0:00:06]} Qd6 {[%emt 0:00:38]} 8. b4 {[%emt 0:03:30]} Bb6 {[%emt 0:00:24]} 9. Nbd2 {[%emt 0:00:21]} Bf5 {[%emt 0:04:03]} 10. Ng5 {[%emt 0:00:31]} O-O {[%emt 0:02:38]} 11. Nde4 {[%emt 0:01:12]} Nxe4 {[%emt 0:02:32]} 12. dxe4 {[%emt 0:00:06]} Qxd1+ {[%emt 0:01:17]} 13. Kxd1 {[%emt 0:00:03]} Bg4+ {[%emt 0:01:02]} 14. Kc2 {[%emt 0:04:00]} h6 {[%emt 0:09:59]} 15. Nf3 {[%emt 0:00:05]} Bxf2 {[%emt 0:20:31]} 16. Rf1 {[%emt 0:00:05]} Bxf3 {[%emt 0:00:06]} 17. gxf3 {[%emt 0:00:13]} Bh4 {[%emt 0:00:05]} 18. Rg1 {[%emt 0:24:22]} Kh7 {[%emt 0:02:53]} 19. Rd1 {[%emt 0:06:50]} Be7 {[%emt 0:12:29]} 20. Rd7 {[%emt 0:13:57]} Bd6 {[%emt 0:01:45]} 21. Be3 {[%emt 0:05:43]} Rad8 {[%emt 0:16:05]} 22. Rxd8 {[%emt 0:00:15]} Rxd8 {[%emt 0:00:09]} 23. Bd5 {[%emt 0:01:18]} a6 {[%emt 0:00:38]} 24. Rb1 {[%emt 0:02:18]} Ra8 {[%emt 0:05:08]} 25. Bxc6 {[%emt 0:16:19]} bxc6 {[%emt 0:00:05]} 26. c4 {[%emt 0:00:12]} f5 {[%emt 0:06:06]} 27. c5 {[%emt 0:00:55]} Be7 {[%emt 0:01:12]} 28. Rd1 {[%emt 0:08:42]} fxe4 {[%emt 0:00:23]} 29. Rd7 {[%emt 0:00:02]} Bg5 {[%emt 0:00:16]} 30. Bxg5 {[%emt 0:00:05]} hxg5 {[%emt 0:00:04]} 31. fxe4 {[%emt 0:00:06]} a5 {[%emt 0:02:08]} 32. a4 {[%emt 0:02:12]} Rb8 {[%emt 0:05:35]} 33. bxa5 {[%emt 0:00:13]} Rb4 {[%emt 0:00:17]} 34. Rxc7 {[%emt 0:00:44]} Rxa4 {[%emt 0:00:49]} 35. Kb3 {[%emt 0:02:07]} Rxa5 {[%emt 0:02:25]} 36. Rxc6 {[%emt 0:00:01]} Ra1 {[%emt 0:00:29]} 37. Re6 {[%emt 0:06:03]} Rh1 {[%emt 0:02:55]} 38. c6 {[%emt 0:01:54]} Rc1 {[%emt 0:00:45]} 39. Kb4 {[%emt 0:00:05]} g4 {[%emt 0:00:28]} 40. Kb5 {[%emt 0:00:09]} Rc2 {[%emt 0:00:35]} 41. Rxe5 {[%emt 0:06:56]} Kg6 {[%emt 0:09:58]} 42. Rc5 {[%emt 0:03:04]} Rxh2 {[%emt 0:00:06]} 43. c7 {[%emt 0:00:03]} Rh8 {[%emt 0:00:06]} 44. c8=Q {[%emt 0:01:07]} Rg8 {[%emt 0:00:04]} 45. Qd8 Rxd8 {[%emt 0:00:30]} 46. Rc6+ {[%emt 0:00:36]} Kg5 {[%emt 0:00:04]} 47. Rc1 {[%emt 0:02:05]} 1-0

[Event "Reykjavik Open 2025"]
[Site "Reykjavik"]
[Date "2025.04.12"]
[Round "5.11"]
[White "Sivuk, Vitaly"]
[Black "Haug, Havard"]
[Result "1/2-1/2"]
[Annotator "ChessBase"]
[ECO "A14"]
[WhiteElo "2505"]
[BlackElo "2339"]
[PlyCount "144"]
[EventDate "2025.04.09"]
[EventType "swiss"]
[EventCountry "ISL"]
[SourceTitle "playchess.com"]
[Source "ChessBase"]
[SourceQuality "1"]
[TimeControl "40/5400+30:1800+30"]

1. c4 {[%emt 0:01:23]} e6 {[%emt 0:00:15]} 2. g3 {[%emt 0:00:16]} Nf6 {[%emt 0:08:46]} 3. Bg2 {[%emt 0:00:13]} d5 {[%emt 0:03:24]} 4. Nf3 {[%emt 0:00:12]} c5 {[%emt 0:00:36]} 5. O-O {[%emt 0:00:43]} Be7 {[%emt 0:00:10]} 6. b3 {[%emt 0:05:34]} O-O {[%emt 0:01:23]} 7. Bb2 {[%emt 0:00:06]} Nc6 {[%emt 0:00:27]} 8. e3 {[%emt 0:00:14]} Ne4 {[%emt 0:11:05]} 9. Na3 {[%emt 0:08:29]} Bf6 {[%emt 0:00:59]} 10. Bxf6 {[%emt 0:00:16]} Nxf6 {[%emt 0:02:51]} 11. d4 {[%emt 0:01:19]} cxd4 {[%emt 0:04:06]} 12. Nxd4 {[%emt 0:01:35]} Qe7 {[%emt 0:06:09]} 13. Nab5 {[%emt 0:04:27]} Nxd4 {[%emt 0:02:03]} 14. Qxd4 {[%emt 0:10:32]} e5 {[%emt 0:03:09]} 15. Qb2 {[%emt 0:03:15]} dxc4 {[%emt 0:10:23]} 16. bxc4 {[%emt 0:00:11]} e4 {[%emt 0:02:48]} 17. Rfd1 {[%emt 0:00:48]} Be6 {[%emt 0:09:38]} 18. Nd6 {[%emt 0:11:13]} Rad8 {[%emt 0:01:23]} 19. Nxe4 {[%emt 0:01:15]} Rxd1+ {[%emt 0:02:33]} 20. Rxd1 {[%emt 0:00:08]} Bxc4 {[%emt 0:00:21]} 21. Nxf6+ {[%emt 0:15:50]} Qxf6 {[%emt 0:00:18]} 22. Qb3 {[%emt 0:02:41]} b6 23. Qxb6 {[%emt 0:00:31]} Bxa2 {[%emt 0:01:15]} 24. Qxa7 {[%emt 0:00:10]} Be6 {[%emt 0:00:29]} 25. Qd4 {[%emt 0:00:29]} h6 {[%emt 0:01:06]} 26. Qxf6 {[%emt 0:00:38]} gxf6 {[%emt 0:00:02]} 27. Bf3 {[%emt 0:02:28]} Kg7 {[%emt 0:01:31]} 28. Kg2 {[%emt 0:00:09]} Rb8 {[%emt 0:00:14]} 29. Rd4 {[%emt 0:00:26]} Rb5 {[%emt 0:01:01]} 30. Be2 {[%emt 0:00:56]} Rb2 {[%emt 0:00:48]} 31. Bc4 {[%emt 0:00:32]} Bxc4 {[%emt 0:00:44]} 32. Rxc4 {[%emt 0:00:07]} Ra2 {[%emt 0:00:28]} 33. g4 {[%emt 0:01:00]} Ra7 {[%emt 0:00:50]} 34. Kg3 {[%emt 0:00:20]} Rb7 {[%emt 0:00:15]} 35. Rc5 {[%emt 0:00:45]} Ra7 {[%emt 0:01:49]} 36. h4 {[%emt 0:00:19]} Rb7 {[%emt 0:00:28]} 37. Kf4 {[%emt 0:00:12]} Ra7 {[%emt 0:00:28]} 38. Kf5 {[%emt 0:00:38]} Rb7 {[%emt 0:00:25]} 39. f4 {[%emt 0:00:44]} Ra7 {[%emt 0:00:32]} 40. e4 {[%emt 0:03:36]} Rb7 {[%emt 0:01:10]} 41. g5 {[%emt 0:34:26]} fxg5 {[%emt 0:30:37]} 42. hxg5 {[%emt 0:00:10]} hxg5 {[%emt 0:00:06]} 43. Kxg5 {[%emt 0:00:03]} f6+ {[%emt 0:01:45]} 44. Kf5 {[%emt 0:00:22]} Kf7 {[%emt 0:00:14]} 45. Ra5 {[%emt 0:00:10]} Rc7 {[%emt 0:00:26]} 46. Ra6 {[%emt 0:01:38]} Rc5+ {[%emt 0:00:07]} 47. e5 {[%emt 0:00:17]} fxe5 {[%emt 0:00:02]} 48. fxe5 {[%emt 0:00:10]} Rc1 {[%emt 0:02:01]} 49. Ra7+ {[%emt 0:00:20]} Kf8 {[%emt 0:00:10]} 50. Kf6 {[%emt 0:00:18]} Rf1+ {[%emt 0:00:09]} 51. Ke6 {[%emt 0:00:06]} Re1 {[%emt 0:00:08]} 52. Ra5 {[%emt 0:00:45]} Re2 {[%emt 0:01:01]} 53. Ra1 {[%emt 0:00:42]} Re3 {[%emt 0:00:24]} 54. Rf1+ {[%emt 0:00:33]} Ke8 {[%emt 0:00:29]} 55. Ra1 {[%emt 0:01:59]} Kf8 {[%emt 0:00:03]} 56. Ra8+ {[%emt 0:00:04]} Kg7 {[%emt 0:00:04]} 57. Kd6 {[%emt 0:00:12]} Kf7 {[%emt 0:00:12]} 58. Ra7+ {[%emt 0:00:14]} Ke8 {[%emt 0:00:34]} 59. Rh7 {[%emt 0:00:29]} Re1 {[%emt 0:00:41]} 60. Ke6 {[%emt 0:06:45]} Kf8 {[%emt 0:00:14]} 61. Rh8+ {[%emt 0:00:06]} Kg7 {[%emt 0:00:05]} 62. Re8 {[%emt 0:00:04]} Ra1 {[%emt 0:00:38]} 63. Rd8 {[%emt 0:00:29]} Re1 {[%emt 0:00:08]} 64. Kd6 {[%emt 0:01:44]} Kf7 {[%emt 0:00:16]} 65. Rd7+ {[%emt 0:00:54]} Ke8 {[%emt 0:00:15]} 66. Rb7 {[%emt 0:00:32]} Re2 {[%emt 0:00:17]} 67. Rb5 {[%emt 0:00:09]} Kf7 {[%emt 0:00:22]} 68. Rd5 {[%emt 0:00:10]} Ra2 {[%emt 0:00:42]} 69. e6+ {[%emt 0:01:51]} Kf6 {[%emt 0:00:38]} 70. Rc5 {[%emt 0:00:06]} Ra6+ {[%emt 0:00:07]} 71. Rc6 {[%emt 0:00:04]} Rxc6+ {[%emt 0:00:03]} 72. Kxc6 {[%emt 0:00:04]} Kxe6 {[%emt 0:00:04]} 1/2-1/2

[Event "Reykjavik Open 2025"]
[Site "Reykjavik"]
[Date "2025.04.12"]
[Round "5.12"]
[White "Song, Yuxin"]
[Black "Papp, Gabor"]
[Result "0-1"]
[Annotator "ChessBase"]
[ECO "C70"]
[WhiteElo "2371"]
[BlackElo "2502"]
[PlyCount "54"]
[EventDate "2025.04.09"]
[EventType "swiss"]
[EventCountry "ISL"]
[SourceTitle "playchess.com"]
[Source "ChessBase"]
[SourceQuality "1"]
[TimeControl "40/5400+30:1800+30"]

1. e4 {[%emt 0:00:03]} e5 {[%emt 0:00:05]} 2. Nf3 {[%emt 0:00:05]} Nc6 {[%emt 0:00:06]} 3. Bb5 {[%emt 0:00:04]} a6 {[%emt 0:00:07]} 4. Ba4 {[%emt 0:00:03]} f5 {[%emt 0:00:07]} 5. d4 {[%emt 0:00:29]} exd4 {[%emt 0:00:08]} 6. e5 {[%emt 0:00:01]} b5 {[%emt 0:00:09]} 7. Bb3 {[%emt 0:00:05]} Bb7 {[%emt 0:00:13]} 8. O-O {[%emt 0:05:57]} Na5 {[%emt 0:00:44]} 9. Bxg8 {[%emt 0:10:22]} Rxg8 {[%emt 0:00:07]} 10. Nxd4 {[%emt 0:01:03]} Qe7 {[%emt 0:00:08]} 11. Nxf5 {[%emt 0:02:21]} Qe6 {[%emt 0:00:06]} 12. Ng3 {[%emt 0:13:55]} O-O-O {[%emt 0:02:07]} 13. Qe2 {[%emt 0:07:17]} Nc6 {[%emt 0:09:25]} 14. f4 {[%emt 0:05:57]} g5 {[%emt 0:18:17]} 15. c3 {[%emt 0:03:03]} h5 {[%emt 0:12:39]} 16. f5 {[%emt 0:16:43]} Qxe5 {[%emt 0:02:32]} 17. f6 {[%emt 0:01:20]} Bc5+ {[%emt 0:02:13]} 18. Kh1 {[%emt 0:03:15]} h4 {[%emt 0:01:47]} 19. Ne4 {[%emt 0:03:11]} h3 {[%emt 0:01:41]} 20. Nbd2 {[%emt 0:03:45]} hxg2+ {[%emt 0:05:34]} 21. Qxg2 {[%emt 0:02:01]} Rh8 {[%emt 0:00:05]} 22. Re1 {[%emt 0:02:20]} d5 {[%emt 0:04:42]} 23. Nf3 {[%emt 0:00:40]} Qxe4 {[%emt 0:00:14]} 24. Rxe4 {[%emt 0:00:04]} dxe4 {[%emt 0:00:04]} 25. Qg4+ {[%emt 0:05:30]} Kb8 {[%emt 0:00:05]} 26. Qxe4 {[%emt 0:00:20]} Rd1+ {[%emt 0:03:06]} 27. Kg2 {[%emt 0:00:09]} Nd8 {[%emt 0:01:23]} 0-1